bitfinex-derivatives/quotes_SOLF0:USTF0_20240829
["timestamp","ask_amount","ask_price","bid_price","bid_amount"]
[1724957788043,0.04594392,140.01,140.0,3.5705]
[1724957789145,3.5687,140.07,140.03,3.5697]
[1724957789347,3.5687,140.07,139.97,34.26]
[1724957789536,3.5685,140.08,140.03,3.5696]
[1724957789946,34.26,140.09,139.99,34.26]
[1724957790143,0.03802508,140.05,140.04,3.5693]
[1724957790444,0.03802508,140.06,140.04,3.5693]
[1724957790640,0.03802508,140.06,140.03,0.04840858]
[1724957791348,0.03802508,140.06,140.03,3.61790858]
[1724957791754,0.03802508,140.06,140.05,3.5692]
[1724957791939,0.03802508,140.06,140.03,0.04840858]
[1724957792554,0.03802508,140.06,140.04,3.5693]
[1724957793149,0.03802508,140.06,140.03,0.04840858]
[1724957795953,0.03802508,140.06,140.03,3.61810858]
[1724957796643,0.03802508,140.06,140.03,0.04840858]
[1724957796862,34.29802508,140.06,140.03,0.04840858]
[1724957797244,3.5695,140.04,140.03,0.04840858]
[1724957797850,34.26,140.04,139.95,3.2242]
[1724957798246,3.5705,140.0,139.95,3.2242]
[1724957798553,34.26,140.02,139.9,34.26]
[1724957798750,0.04589866,139.97,139.95,0.05197585]
[1724957798948,0.04742708,139.97,139.95,0.05197585]
[1724957799255,0.04742708,139.97,139.95,3.62367585]
[1724957799645,0.04742708,139.97,139.95,0.05197585]
[1724957801345,0.04742708,139.97,139.94,34.26]
[1724957801346,44.84,140.06,139.96,34.26]
[1724957801544,44.84,140.08,139.96,34.26]
[1724957802150,34.26,140.03,139.92,34.26]
[1724957802451,0.03900658,140.03,140.01,0.04555369]
[1724957802757,10.58,140.08,139.9,41.67286555]
[1724957803052,1.4777,140.07,139.9,41.67286555]
[1724957803644,3.5704,140.01,139.96,3.5715]
[1724957803848,3.5704,140.01,139.9,41.67286555]
[1724957803849,0.04840056,140.0,139.97,0.05007687]
[1724957804159,0.05415196,140.0,139.99,3.5707]
[1724957804456,0.05415196,140.0,139.97,0.05449426]
[1724957804457,34.31415196,140.0,139.97,0.05449426]
[1724957805157,0.05415196,140.0,139.97,0.05449426]
[1724957805650,3.571,139.98,139.97,0.05449426]
[1724957806751,37.831,139.98,139.97,0.05449426]
[1724957806951,3.5721,139.94,139.9,3.7795]
[1724957807356,3.572,139.95,139.9,3.7795]
[1724957807654,3.572,139.95,139.9,1.9098]
[1724957807955,0.04691153,139.94,139.91,0.04969726]
[1724957809552,34.26,140.02,139.91,0.04969726]
[1724957809752,34.26,140.02,139.91,34.26]
[1724957809948,10.58,140.05,139.94,34.26]
[1724957810355,34.26,140.06,139.99,3.5707]
[1724957810550,0.04840273,140.04,140.01,0.05291563]
[1724957810747,0.0481144,140.04,140.01,0.05227021]
[1724957811346,3.6176144,140.04,140.01,0.05227021]
[1724957811749,0.0481144,140.04,140.01,0.05227021]
[1724957812849,34.3081144,140.04,140.01,0.05227021]
[1724957813456,3.57,140.02,140.01,0.05227021]
[1724957814851,34.26,140.02,139.94,3.572]
[1724957815153,3.52211665,140.04,139.92,1.9318]
[1724957815154,34.26,139.99,139.92,1.9318]
[1724957815456,34.26,140.01,139.92,1.9318]
[1724957815852,0.04507314,139.98,139.95,0.05143617]
[1724957816051,0.04507314,139.98,139.97,3.5713]
[1724957816252,0.04507314,139.98,139.95,0.05143617]
[1724957817659,34.26,140.04,139.95,0.05143617]
[1724957817848,34.26,140.04,139.93,34.26]
[1724957818155,10.2,140.06,139.95,34.26]
[1724957818156,3.5697,140.03,139.95,34.26]
[1724957818352,34.26,140.06,139.95,34.26]
[1724957818555,0.05025707,140.02,139.99,0.04524373]
[1724957822362,0.05025707,140.02,139.99,3.61594373]
[1724957822561,0.05025707,140.02,139.99,0.04524373]
[1724957823157,3.5705,140.0,139.99,0.04524373]
[1724957823667,3.5718,139.95,139.9,3.7828]
[1724957824171,34.26,140.0,139.91,3.5726]
[1724957824360,3.5718,139.95,139.91,3.5726]
[1724957824571,34.26,139.98,139.9,3.7828]
[1724957824765,0.05373716,139.95,139.93,0.05240877]
[1724957824967,3.5721,139.94,139.93,0.05240877]
[1724957828264,3.5729,139.91,139.87,5.4231]
[1724957828666,34.26,139.95,139.88,3.5735]
[1724957829066,3.5727,139.92,139.88,3.5735]
[1724957829266,0.05032122,139.91,139.89,0.04930835]
[1724957830671,3.573,139.9,139.89,0.04930835]
[1724957831360,3.5745,139.85,139.83,1.7826]
[1724957831564,34.26,139.88,139.8,3.5756]
[1724957831773,34.26,139.88,139.8,3.48822287]
[1724957831964,34.26,139.88,139.78,1.7774]
[1724957832166,34.26,139.88,139.8,3.5754]
[1724957832368,34.26,139.88,139.78,5.26448454]
[1724957832565,34.26,139.9,139.79,34.26]
[1724957832765,0.05350426,139.84,139.82,0.046249]
[1724957832966,34.26,139.92,139.82,0.046249]
[1724957833275,34.26,139.92,139.82,1.9081]
[1724957833776,34.26,139.92,139.84,3.5744]
[1724957833970,0.05101675,139.89,139.87,0.05500372]
[1724957834172,3.5735,139.88,139.87,0.05500372]
[1724957835274,34.26,139.88,139.79,3.48851412]
[1724957835773,34.26,139.88,139.81,3.5753]
[1724957836276,0.05221313,139.86,139.83,0.05052372]
[1724957836778,0.05221313,139.86,139.85,3.5743]
[1724957837278,34.26,139.93,139.87,3.5736]
[1724957837871,9.8,139.94,139.9,3.5728]
[1724957838171,0.04810788,139.93,139.91,0.04760823]
[1724957838372,0.05037608,139.93,139.91,3.6181038]
[1724957838673,0.05037608,139.93,139.91,0.0454038]
[1724957838877,3.5725,139.92,139.91,0.0454038]
[1724957839477,3.62267608,139.93,139.91,0.0454038]
[1724957839678,34.31037608,139.93,139.91,0.0454038]
[1724957840070,3.5725,139.92,139.91,0.0454038]
[1724957840580,34.31037608,139.93,139.91,0.0454038]
[1724957841081,37.88277608,139.93,139.91,0.0454038]
[1724957841376,34.31037608,139.93,139.91,0.0454038]
[1724957841775,43.75037608,139.93,139.77,34.26]
[1724957841982,34.26,139.89,139.77,38.0023]
[1724957842177,3.5745,139.85,139.81,3.5751]
[1724957842378,34.26,139.89,139.78,1.913]
[1724957842786,0.04980389,139.85,139.82,3.62701749]
[1724957842985,0.04980389,139.85,139.82,0.05211749]
[1724957844383,3.5731,139.9,139.85,3.5741]
[1724957844788,9.44,139.92,139.84,3.6027639]
[1724957844987,9.44,139.92,139.81,34.26]
[1724957845190,3.573,139.91,139.81,34.26]
[1724957845386,0.04830002,139.88,139.85,0.05122508]
[1724957845585,0.04830002,139.88,139.86,3.5741]
[1724957845986,9.44,139.92,139.85,3.57639922]
[1724957846193,9.44,139.92,139.86,36.2117]
[1724957846488,3.8232,139.96,139.86,38.1117]
[1724957846693,3.5725,139.93,139.88,3.5735]
[1724957846887,3.8232,139.96,139.86,38.1117]
[1724957847089,0.05172141,139.92,139.9,0.04957224]
[1724957848284,3.5728,139.91,139.9,0.04957224]
[1724957848802,3.62442141,139.92,139.9,0.04957224]
[1724957849088,0.05172141,139.92,139.9,0.04957224]
[1724957849284,0.05172141,139.92,139.9,3.62237224]
[1724957849893,0.05172141,139.92,139.91,3.5728]
[1724957850291,2.0289,140.0,139.9,34.26]
[1724957850597,3.5718,139.95,139.91,3.5726]
[1724957850987,34.26,139.97,139.86,47.5517]
[1724957851396,0.04852602,139.93,139.9,0.05204084]
[1724957852096,0.04852602,139.93,139.9,3.62504084]
[1724957852784,0.04852602,139.93,139.9,0.05204084]
[1724957852785,3.62082602,139.93,139.9,0.05204084]
[1724957852989,0.04852602,139.93,139.9,0.05204084]
[1724957853193,0.04852602,139.93,139.9,34.31204084]
[1724957853386,3.571,139.99,139.9,34.26]
[1724957853793,34.26,139.95,139.86,3.8517]
[1724957854096,34.26,139.92,139.86,3.8517]
[1724957854296,34.30588093,139.9,139.88,0.0457693]
[1724957854600,0.05006225,139.9,139.88,0.05126522]
[1724957854793,34.26,139.89,139.88,0.05126522]
[1724957855285,0.05006225,139.9,139.88,0.05126522]
[1724957861506,3.62326225,139.9,139.88,0.05126522]
[1724957861795,0.05006225,139.9,139.88,0.05126522]
[1724957862393,3.5733,139.89,139.88,0.05126522]
[1724957863402,0.05006225,139.9,139.88,0.05126522]
[1724957864110,3.5733,139.89,139.88,0.05126522]
[1724957865796,3.62316225,139.9,139.88,0.05126522]
[1724957866194,0.05006225,139.9,139.88,0.05126522]
[1724957866504,3.5733,139.89,139.88,0.05126522]
[1724957867098,3.5742,139.86,139.83,2.0039]
[1724957867293,34.26,139.87,139.8,3.959]
[1724957867498,34.26,139.85,139.78,3.5660183]
[1724957867693,34.26,139.85,139.77,2.0551]
[1724957867902,3.5751,139.83,139.77,2.0551]
[1724957868102,0.04553719,139.81,139.79,0.04783236]
[1724957869497,0.04553719,139.81,139.8,3.5756]
[1724957870102,0.04553719,139.81,139.79,0.04783236]
[1724957870297,0.04553719,139.81,139.79,3.62353236]
[1724957871005,0.04553719,139.81,139.8,3.5756]
[1724957872200,0.04553719,139.81,139.79,0.04783236]
[1724957874210,3.62103719,139.81,139.79,0.04783236]
[1724957875012,0.04553719,139.81,139.79,0.04783236]
[1724957875615,3.5769,139.75,139.74,1.9743]
[1724957875814,34.26,139.78,139.67,34.26]
[1724957876018,34.26,139.78,139.73,3.5772]
[1724957876519,34.26,139.8,139.75,3.5769]
[1724957876723,34.26,139.8,139.71,3.65376763]
[1724957877015,0.05300969,139.79,139.76,0.04580753]
[1724957877214,0.05300969,139.79,139.76,3.62220753]
[1724957877811,0.05300969,139.79,139.76,0.04580753]
[1724957879814,0.05300969,139.79,139.76,3.62220753]
[1724957880014,0.05300969,139.79,139.76,0.04580753]
[1724957880709,0.05300969,139.79,139.77,3.5761]
[1724957880911,0.05300969,139.79,139.76,0.04580753]
[1724957882519,3.5764,139.77,139.76,0.04580753]
[1724957883015,3.5764,139.77,139.69,4.1477]
[1724957883016,8.36,139.77,139.69,4.1477]
[1724957883321,3.5773,139.74,139.7,3.5781]
[1724957883617,34.26,139.75,139.7,3.5781]
[1724957883922,0.05077258,139.74,139.71,0.04850421]
[1724957884219,34.26,139.72,139.71,0.04850421]
[1724957884422,37.8376,139.72,139.71,0.04850421]
[1724957884927,3.5776,139.72,139.71,0.04850421]
[1724957885116,34.26,139.72,139.48,7.1675]
[1724957885317,34.26,139.64,139.56,6.0758]
[1724957885620,34.26,139.64,139.57,3.5813]
[1724957885621,3.5804,139.62,139.57,3.5813]
[1724957886218,3.63111112,139.61,139.58,0.04797277]
[1724957886416,0.05061112,139.61,139.58,0.04797277]
[1724957886917,0.05061112,139.61,139.6,3.5807]
[1724957887310,42.62,139.68,139.57,34.26]
[1724957887916,8.36,139.68,139.57,34.26]
[1724957888122,34.26,139.66,139.57,34.26]
[1724957888322,0.04716928,139.64,139.61,0.05293423]
[1724957889327,0.04716928,139.64,139.61,3.63333423]
[1724957889528,0.04716928,139.64,139.61,0.05293423]
[1724957890126,0.04716928,139.64,139.61,3.63333423]
[1724957890731,0.04716928,139.64,139.61,0.05293423]
[1724957890925,34.30716928,139.64,139.61,0.05293423]
[1724957891119,34.26,139.62,139.61,0.05293423]
[1724957891615,37.8402,139.62,139.61,0.05293423]
[1724957892021,3.5813,139.58,139.54,3.5822]
[1724957892218,37.8413,139.58,139.54,3.5822]
[1724957892417,34.26,139.55,139.43,3.64915898]
[1724957892615,34.26,139.54,139.46,7.148]
[1724957893029,0.05391475,139.51,139.49,0.04890693]
[1724957894725,0.05391475,139.51,139.46,7.148]
[1724957895024,34.26,139.58,139.48,34.26]
[1724957895229,3.5812,139.58,139.53,3.5823]
[1724957895830,0.05135928,139.57,139.54,3.63666141]
[1724957896325,8.38,139.6,139.57,3.5814]
[1724957896719,8.38,139.66,139.56,34.26]
[1724957897033,8.38,139.66,139.58,3.581]
[1724957897324,0.04819017,139.63,139.61,0.04664985]
[1724957899231,3.5802,139.62,139.61,0.04664985]
[1724957900130,37.88819017,139.63,139.61,0.04664985]
[1724957900320,0.04819017,139.63,139.61,0.04664985]
[1724957900829,34.30819017,139.63,139.61,0.04664985]
[1724957901130,3.5802,139.62,139.61,0.04664985]
[1724957901330,8.38,139.62,139.54,1.9695]
[1724957901523,34.26,139.58,139.54,1.9695]
[1724957901920,34.26,139.61,139.54,1.9695]
[1724957902432,0.05113503,139.59,139.56,0.05446185]
[1724957903024,0.05113503,139.59,139.57,3.5813]
[1724957903327,0.05113503,139.59,139.56,0.05446185]
[1724957903531,0.05113503,139.59,139.58,3.5812]
[1724957903726,34.26,139.65,139.54,1.9695]
[1724957904033,3.5799,139.64,139.59,3.5809]
[1724957904327,34.26,139.65,139.54,1.9695]
[1724957904528,3.5798,139.64,139.59,3.5808]
[1724957904733,34.26,139.65,139.6,0.05389408]
[1724957904734,0.04535577,139.63,139.6,0.05389408]
[1724957905431,0.04535577,139.63,139.6,3.63459408]
[1724957905636,0.04535577,139.63,139.6,0.05389408]
[1724957906134,0.04535577,139.63,139.62,3.5802]
[1724957906835,0.04535577,139.63,139.61,3.5804]
[1724957907041,0.04535577,139.63,139.6,0.05389408]
[1724957907227,34.30535577,139.63,139.6,0.05389408]
[1724957907430,34.26,139.61,139.54,1.9695]
[1724957907624,37.8411,139.59,139.54,1.9695]
[1724957907836,34.26,139.59,139.54,1.9695]
[1724957908232,34.26,139.56,139.46,7.148]
[1724957908535,0.04698816,139.52,139.5,0.04931485]
[1724957909325,0.04698816,139.52,139.51,3.5829]
[1724957909529,0.04698816,139.52,139.5,0.04931485]
[1724957909934,312.93,139.51,139.3,7.148]
[1724957910230,34.42,139.42,139.32,7.148]
[1724957910426,34.42,139.47,139.37,7.148]
[1724957910626,121.68420068,139.51,139.37,10.69261884]
[1724957910627,8.74,139.46,139.37,10.69261884]
[1724957910830,8.74,139.46,139.41,7.148]
[1724957910831,0.05073068,139.43,139.41,7.148]
[1724957911637,8.74,139.5,139.41,7.148]
[1724957911833,8.74,139.5,139.4,7.148]
[1724957912027,8.74,139.5,139.39,3.64813489]
[1724957912028,3.5837,139.49,139.44,7.148]
[1724957912232,8.74,139.5,139.44,7.148]
[1724957912433,8.74,139.52,139.44,7.148]
[1724957912629,0.05065933,139.49,139.47,0.04738652]
[1724957914940,41.28,139.55,139.47,0.04738652]
[1724957915239,78.68,139.57,139.47,5.67084981]
[1724957915440,41.28,139.55,139.47,2.043]
[1724957916035,0.0542398,139.52,139.5,0.04886993]
[1724957918435,0.0542398,139.52,139.5,3.63206993]
[1724957918845,0.0542398,139.52,139.5,0.04886993]
[1724957919036,0.0542398,139.52,139.51,3.583]
[1724957920147,3.5819,139.56,139.51,3.583]
[1724957921054,0.05277397,139.55,139.51,3.583]
[1724957921548,3.63497397,139.55,139.5,3.63206993]
[1724957921748,3.63497397,139.55,139.5,0.04886993]
[1724957922256,0.05277397,139.55,139.5,0.04886993]
[1724957922855,0.05277397,139.55,139.53,3.5824]
[1724957923046,0.05277397,139.55,139.5,0.04886993]
[1724957924050,3.63477397,139.55,139.5,3.63196993]
[1724957924452,3.5827,139.53,139.5,0.04886993]
[1724957924850,41.33277397,139.55,139.5,0.04886993]
[1724957925048,0.05277397,139.55,139.5,0.04886993]
[1724957925254,0.1044,139.65,139.51,41.28]
[1724957925450,41.28,139.65,139.53,41.28]
[1724957925649,44.8595,139.65,139.53,41.28]
[1724957925955,3.5795,139.65,139.53,41.28]
[1724957926162,0.04557372,139.6,139.58,0.04690061]
[1724957926361,0.05164425,139.6,139.58,0.04690061]
[1724957926862,44.8596,139.65,139.58,0.04690061]
[1724957927154,8.74,139.67,139.58,0.04690061]
[1724957927359,3.5794,139.66,139.61,3.5803]
[1724957927659,8.74,139.67,139.57,2.0836]
[1724957927864,0.02939789,139.63,139.62,3.58]
[1724957928059,0.02939789,139.64,139.61,3.62367882]
[1724957928251,0.02939789,139.64,139.61,0.04529052]
[1724957929062,0.02939789,139.64,139.63,3.5799]
[1724957931563,0.02939789,139.64,139.62,3.58]
[1724957932453,0.02939789,139.64,139.61,0.04529052]
[1724957934059,0.02939789,139.64,139.62,3.5802]
[1724957934761,0.02939789,139.64,139.63,3.5799]
[1724957935262,0.02939789,139.64,139.61,0.04529052]
[1724957935862,0.02939789,139.64,139.61,3.62559052]
[1724957936067,0.02939789,139.64,139.61,0.04529052]
[1724957936464,0.02939789,139.64,139.62,3.58]
[1724957936664,0.02939789,139.64,139.61,0.04529052]
[1724957938067,41.24,139.7,139.61,0.04529052]
[1724957938269,41.24,139.7,139.6,3.49229392]
[1724957938565,34.452,139.73,139.61,34.35]
[1724957938769,42.832,139.73,139.61,37.95108376]
[1724957938969,3.5779,139.71,139.66,0.04984819]
[1724957939673,34.35,139.71,139.66,0.04984819]
[1724957940373,34.35,139.73,139.66,0.04984819]
[1724957940576,34.35,139.73,139.68,0.0475853]
[1724957940873,34.35,139.73,139.69,3.5784]
[1724957941073,34.35,139.75,139.68,0.0475853]
[1724957941378,34.35,139.75,139.7,3.5779]
[1724957941379,3.5772,139.74,139.7,3.5779]
[1724957941573,3.5772,139.74,139.71,0.05205531]
[1724957941878,11.9568,139.76,139.71,0.05205531]
[1724957942566,11.9568,139.76,139.73,3.5773]
[1724957942763,3.5768,139.76,139.71,0.05205531]
[1724957943373,34.35,139.73,139.71,0.05205531]
[1724957943776,34.35,139.73,139.66,5.6574]
[1724957943978,34.35,139.71,139.66,2.0783]
[1724957944473,34.35,139.71,139.67,3.5788]
[1724957944887,0.04834419,139.7,139.68,3.63237706]
[1724957945182,0.04834419,139.7,139.68,0.05377706]
[1724957945575,0.04834419,139.7,139.69,3.5784]
[1724957946486,3.5765,139.77,139.69,34.35]
[1724957946690,7.1484,139.86,139.69,34.35]
[1724957946691,34.35,139.8,139.69,34.35]
[1724957947076,3.5767,139.76,139.69,34.35]
[1724957947277,34.35,139.8,139.69,34.35]
[1724957947477,34.35,139.8,139.73,0.05153375]
[1724957947676,8.36,139.81,139.73,0.05153375]
[1724957947677,34.35,139.78,139.73,0.05153375]
[1724957947877,34.35,139.76,139.73,0.05153375]
[1724957948287,34.35,139.78,139.73,0.05153375]
[1724957949091,34.35,139.78,139.75,3.5768]
[1724957949284,34.35,139.8,139.73,0.05153375]
[1724957950289,37.9257,139.8,139.73,0.05153375]
[1724957950682,3.5759,139.79,139.76,3.5766]
[1724957950881,3.5759,139.79,139.76,3.62849218]
[1724957952181,3.5757,139.8,139.76,3.62849218]
[1724957952589,42.37,139.82,139.76,3.62849218]
[1724957953095,34.35,139.82,139.77,3.5764]
[1724957953591,34.35,139.82,139.76,3.62839218]
[1724957954394,34.35,139.82,139.76,0.05189218]
[1724957956089,7.1459,139.91,139.76,0.05189218]
[1724957956293,34.35,139.87,139.82,0.04691249]
[1724957956492,37.86518493,139.87,139.83,0.04756247]
[1724957956794,3.5746,139.84,139.81,3.5752]
[1724957956994,37.86518493,139.87,139.81,0.04651929]
[1724957957587,3.5748,139.83,139.81,0.04651929]
[1724957958291,34.35,139.85,139.76,2.0065]
[1724957958489,34.35,139.85,139.76,5.60515079]
[1724957959196,34.35,139.83,139.73,36.3079]
[1724957959497,0.04962066,139.81,139.79,0.05004102]
[1724957960296,3.62512066,139.81,139.79,0.05004102]
[1724957960498,0.04962066,139.81,139.79,0.05004102]
[1724957962185,0.04962066,139.81,139.79,3.62584102]
[1724957962391,0.04962066,139.81,139.79,0.05004102]
[1724957963297,3.5756,139.8,139.79,0.05004102]
[1724957963500,0.04962066,139.81,139.79,0.05004102]
[1724957964091,0.04962066,139.81,139.8,3.5756]
[1724957965489,0.04962066,139.81,139.79,0.05004102]
[1724957966195,0.04962066,139.81,139.79,3.62584102]
[1724957966399,0.04962066,139.81,139.79,0.05004102]
[1724957969302,3.62502066,139.81,139.79,0.05004102]
[1724957970206,0.04962066,139.81,139.79,0.05004102]
[1724957971302,3.5756,139.8,139.79,0.05004102]
[1724957973606,34.35,139.81,139.72,1.9147]
[1724957973817,34.35,139.79,139.67,41.97]
[1724957974004,34.35,139.76,139.7,3.578]
[1724957974204,34.35,139.76,139.66,5.9719]
[1724957974205,3.5773,139.74,139.66,5.9719]
[1724957974404,34.35,139.76,139.66,5.9719]
[1724957974808,0.0551976,139.72,139.7,0.05071983]
[1724957975002,0.05317863,139.72,139.7,0.0482173]
[1724957976713,3.63097863,139.72,139.7,0.0482173]
[1724957976913,0.05317863,139.72,139.7,0.0482173]
[1724957977225,34.40317863,139.72,139.62,1.9425]
[1724957977413,34.35,139.69,139.62,1.9425]
[1724957977612,34.35,139.69,139.64,3.5796]
[1724957978218,0.05184397,139.68,139.65,0.04710498]
[1724957978424,3.5789,139.67,139.65,0.04710498]
[1724957979024,0.05184397,139.68,139.65,0.04710498]
[1724957979519,3.5792,139.66,139.65,0.04710498]
[1724957980608,3.5792,139.66,139.6,3.5807]
[1724957980609,3.5796,139.65,139.6,3.5807]
[1724957980814,3.5796,139.65,139.58,4.0621]
[1724957980815,34.35,139.65,139.58,4.0621]
[1724957981323,3.5802,139.63,139.59,3.581]
[1724957981518,0.04604566,139.62,139.6,0.05334629]
[1724957983409,0.04604566,139.62,139.6,3.63394629]
[1724957984822,0.04604566,139.62,139.61,3.5805]
[1724957986828,3.5789,139.68,139.64,3.5796]
[1724957987224,34.35,139.71,139.61,1.9026]
[1724957987420,3.5786,139.69,139.64,3.5797]
[1724957987624,3.5786,139.69,139.61,1.9026]
[1724957987932,0.05293766,139.66,139.64,0.04807065]
[1724957988131,37.9281,139.71,139.67,3.5789]
[1724957988628,34.35,139.71,139.65,3.50127654]
[1724957988832,3.5783,139.7,139.66,3.5791]
[1724957989130,0.05306694,139.69,139.67,0.04868505]
[1724957989824,0.05306694,139.69,139.67,3.62758505]
[1724957991119,0.05306694,139.69,139.68,3.5787]
[1724957992730,0.05306694,139.69,139.67,0.04868505]
[1724957994335,3.63166694,139.69,139.67,0.04868505]
[1724957994635,0.05306694,139.69,139.67,0.04868505]
[1724957996645,0.05306694,139.69,139.67,3.62738505]
[1724957996936,0.05306694,139.69,139.67,0.04868505]
[1724957997328,0.05306694,139.69,139.68,3.5787]
[1724958000334,34.35,139.78,139.67,0.04868505]
[1724958000526,34.35,139.76,139.65,3.913]
[1724958000728,34.35,139.74,139.67,3.5787]
[1724958000925,34.35,139.74,139.65,3.913]
[1724958000926,34.35,139.72,139.65,3.913]
[1724958001138,37.94468422,139.72,139.65,3.913]
[1724958001334,0.04354345,139.7,139.67,0.05183252]
[1724958002531,7.54,139.74,139.67,34.40183252]
[1724958002735,0.0784,139.82,139.69,34.35]
[1724958002736,62.97,139.81,139.69,34.35]
[1724958002932,3.5763,139.78,139.69,34.35]
[1724958003339,34.35,139.79,139.69,34.35]
[1724958003638,34.35,139.81,139.73,0.05399781]
[1724958003837,34.35,139.8,139.76,0.04913988]
[1724958004635,0.1936,139.86,139.76,0.04913988]
[1724958004636,34.35,139.81,139.76,0.04913988]
[1724958004847,34.35,139.81,139.77,0.04710876]
[1724958005030,3.576,139.79,139.78,0.04777461]
[1724958005236,34.35,139.81,139.77,0.05476197]
[1724958005436,34.35,139.81,139.78,0.04934216]
[1724958005638,34.35,139.81,139.78,0.05499258]
[1724958005837,7.52,139.82,139.78,0.05499258]
[1724958006041,37.99552146,139.86,139.78,0.05499258]
[1724958006235,34.35,139.86,139.81,0.04793862]
[1724958006743,3.5748,139.84,139.81,0.04793862]
[1724958007742,34.35,139.86,139.81,0.04793862]
[1724958008437,34.35,139.83,139.74,7.52]
[1724958008644,34.35,139.81,139.74,7.52]
[1724958008842,3.5762,139.78,139.74,3.5771]
[1724958009043,34.35,139.81,139.74,3.5771]
[1724958009238,34.35,139.81,139.7,4.0457]
[1724958009434,0.04570407,139.78,139.75,3.62771769]
[1724958009640,0.04793862,139.78,139.75,3.62860567]
[1724958010443,3.5766,139.76,139.75,0.05190567]
[1724958010746,37.9266,139.76,139.75,0.00274857]
[1724958011049,3.5775,139.73,139.7,2.0845]
[1724958011245,34.35,139.76,139.65,7.52]
[1724958011440,34.35,139.76,139.66,34.35]
[1724958011646,3.5768,139.76,139.66,34.35]
[1724958011849,7.52,139.77,139.69,3.5784]
[1724958012051,7.52,139.77,139.72,0.05066928]
[1724958012245,3.62747581,139.79,139.72,0.05066928]
[1724958012246,0.05472758,139.74,139.72,0.05066928]
[1724958012440,0.05458275,139.74,139.72,0.05066928]
[1724958012642,7.1441,139.94,139.72,34.40066928]
[1724958012851,3.5756,139.81,139.74,34.35]
[1724958013753,34.35,139.85,139.74,34.35]
[1724958013754,0.04526154,139.79,139.76,0.0551643]
[1724958013954,0.04526154,139.79,139.76,0.04715006]
[1724958015355,3.5764,139.77,139.76,0.04715006]
[1724958015856,0.04526154,139.79,139.76,0.04715006]
[1724958017144,7.9,139.85,139.76,0.04715006]
[1724958017345,3.59212418,139.87,139.79,34.35]
[1724958017552,3.5739,139.87,139.82,3.575]
[1724958018256,3.5739,139.87,139.83,0.05281761]
[1724958018851,3.5741,139.86,139.83,0.05281761]
[1724958019051,34.35,139.85,139.72,34.35]
[1724958019252,34.35,139.83,139.72,38.3228]
[1724958020051,37.925,139.83,139.77,3.5762]
[1724958020252,0.05147147,139.81,139.79,0.05410036]
[1724958020452,0.05147147,139.81,139.79,0.04561864]
[1724958022556,34.40147147,139.81,139.79,0.04561864]
[1724958023465,3.5756,139.8,139.79,0.04561864]
[1724958023663,34.40147147,139.81,139.71,3.66519411]
[1724958023856,34.35,139.79,139.67,34.35]
[1724958024053,42.63,139.79,139.67,37.95687012]
[1724958024360,42.63,139.79,139.69,34.35]
[1724958024361,34.35,139.79,139.69,34.35]
[1724958024555,34.35,139.79,139.72,3.5776]
[1724958024762,0.05323238,139.77,139.74,0.04672234]
[1724958025753,34.35,139.76,139.74,0.04672234]
[1724958026055,34.35,139.76,139.65,3.62334502]
[1724958026357,34.35,139.71,139.63,5.8388]
[1724958026565,3.5797,139.64,139.63,3.8679]
[1724958026768,34.35,139.67,139.59,2.0321]
[1724958026952,0.04558361,139.64,139.62,0.04634914]
[1724958027158,3.62538361,139.64,139.62,0.04634914]
[1724958027657,0.04558361,139.64,139.62,0.04634914]
[1724958030769,34.35,139.63,139.55,1.9677]
[1724958030955,34.35,139.61,139.53,3.61428702]
[1724958031161,34.35,139.55,139.44,1.9677]
[1724958031360,34.35,139.55,139.44,38.3634]
[1724958031560,8.66,139.56,139.46,34.35]
[1724958031766,43.01,139.59,139.48,34.35]